Cogmind - Beta 14 @@@ ROGUE MODE // 2024.08.30 @ 01:15:11 Player: celerysam Result: Destroyed by H-66 Slayer with Gauss Rifle Performance ------------- Evolutions (4) 2000 Regions Visited (5) 1000 Robots Destroyed (41) 205 Value Destroyed (1430) 1430 Prototype IDs (3) 60 Alien Tech Used (0) 0 Bonus (0) 0 TOTAL SCORE: 4695 Bonus ------- None Cogmind --------- Core Integrity 0/850 Matter 16/300 Energy 76/100 System Corruption 11% Temperature Cool (2) Movement Flying (34) Location -6/Factory Parts ------- > --- POWER (2) -------- (None) > --- PROPULSION (6) --- VTOL Module Xenon Bombardment Thruster > --- UTILITY (4) ------ Core Analyzer > --- WEAPON (3) ------- (None) > --- INVENTORY (5) ---- Improved Deuterium Engine Power Amplifier System Shield High-powered Shotgun Peak State ------------ > --- POWER ------------ Improved Deuterium Engine Heavy Deuterium Engine > --- PROPULSION ------- Carbon-fiber Leg Carbon-fiber Leg Flexi-carbon Leg Flexi-carbon Leg Flexi-carbon Leg Flexi-carbon Leg > --- UTILITY ---------- Advanced Heat Sink Huge Storage Unit Core Analyzer Phase Shifter > --- WEAPON ----------- Shock Rifle Thermic Laser Heavy Mace > --- INVENTORY -------- Nuclear Core Improved Deuterium Engine Improved Deuterium Engine Compact Wheel Gravmag System Gravmag System VTOL Module Xenon Bombardment Thruster Power Amplifier Improved Cryofiber Web Improved Heat Sink Small Storage Unit Matter Compressor Advanced Weight Redist. System Improved Salvage Targeting Computer Reaction Control System System Shield Field Recycling Unit Arc Projector Minigun High-powered Shotgun Gauss Rifle Hypervelocity Gauss Rifle Gauss Cannon Heavy Flak Cannon [Rating: 69] Favorites ----------- Power Improved Ion Engine Engine Improved Ion Engine Power Core Nuclear Core Propulsion Light Treads Treads Light Treads Leg Carbon-fiber Leg Wheel Compact Wheel Hover Unit Gravmag System Flight Unit VTOL Module Utility Huge Storage Unit Device Heat Sink Storage Huge Storage Unit Processor Core Analyzer Protection Light Armor Plating Weapon Beam Rifle Energy Gun Beam Rifle Ballistic Gun Heavy Assault Rifle Ballistic Cannon Gauss Cannon Impact Weapon Heavy Mace Build | -11 -10 -9 -8 -7 -6 ------- Run | Yrd Mat Mat Mat Fac Fac Slots Evolved 8 | . . 2 2 2 2 Power 1 | . . . 1 . . Propulsion 4 | . . 2 . 2 . Utility 2 | . . . 1 . 1 Weapon 1 | . . . . . 1 Parts Attached 86 | 6 2 23 6 3 46 Power 12 | 1 . 4 1 . 6 Engine 9 | 1 . 4 1 . 3 Core 3 | . . . . . 3 Reactor . | . . . . . . Propulsion 36 | 2 . 8 1 2 23 Treads 11 | . . 8 1 1 1 Leg 11 | . . . . 1 10 Wheel 10 | 2 . . . . 8 Hover 2 | . . . . . 2 Flight 2 | . . . . . 2 Utility 12 | 1 . 4 2 . 5 Device 4 | . . . 1 . 3 Storage 2 | 1 . 1 . . . Processor 1 | . . . . . 1 Hackware . | . . . . . . Protection 5 | . . 3 1 . 1 Artifact . | . . . . . . Weapon 26 | 2 2 7 2 1 12 Energy Gun 11 | 1 2 3 . . 5 Energy Cannon . | . . . . . . Ballistic Gun 9 | 1 . 4 2 . 2 Ballistic Cannon 4 | . . . . 1 3 Launcher . | . . . . . . Special Weapon . | . . . . . . Impact Weapon 2 | . . . . . 2 Slashing Weapon . | . . . . . . Piercing Weapon . | . . . . . . Special Melee Weapon . | . . . . . . Unidentified Prototypes 3 | . . . . . 3 Parts Lost 42 | . 1 8 1 . 32 Power 5 | . . 1 . . 4 Propulsion 21 | . 1 3 1 . 16 Utility 5 | . . . . . 5 Weapon 11 | . . 4 . . 7 Highest Loss Streak 17 | . 1 3 1 . 17 To Critical Strikes . | . . . . . . Average Slot Usage (%) 94 | . 79 89 96 100 95 Engine 11 | . 14 10 15 15 9 Treads 25 | . . 36 35 38 13 Leg 7 | . . . . 7 15 Wheel 4 | . 22 . . . 7 Device 5 | . . . 8 7 7 Storage 8 | . 14 11 9 7 5 Processor 2 | . . . . . 6 Protection 6 | . . 8 9 7 3 Energy Gun 7 | . 16 7 9 7 7 Ballistic Gun 5 | . 11 14 9 . . Ballistic Cannon 2 | . . . . 6 4 Impact Weapon 2 | . . . . . 5 Peak Build Rating 69 | 6 6 14 21 26 69 Average Rating 28 | 3 5 11 17 25 47 On Entrance 11 | . 6 5 13 21 26 Naked Turns . | . . . . . . Heaviest Build 119 | 13 13 96 105 109 119 Greatest Support 110 | 26 26 80 80 100 110 Greatest Overweight (x) 7 | 1 . 4 1 1 7 Average Overweight (x) 1 | . . . 1 1 1 Largest Inventory Capacity 25 | 8 8 25 25 25 25 Average Capacity 20 | 6 8 12 25 25 24 Most Carried 25 | 6 7 12 21 25 25 Average Carried 17 | 4 6 8 15 23 23 Final Capacity 25 | 8 8 25 25 25 5 Final Carried 25 | 6 7 11 21 25 4 Class Distribution -------------------- 72% | Scavenger-Mutant 27% | Mutant Dominant Class ---------------- Mutant | -10/Materials Scavenger-Mutant | -9/Materials Scavenger-Mutant | -8/Materials Scavenger-Mutant | -7/Factory Scavenger-Mutant | -6/Factory Resources | -11 -10 -9 -8 -7 -6 ----------- Run | Yrd Mat Mat Mat Fac Fac Matter Collected 1106 | 148 55 404 106 . 393 Remotely . | . . . . . . Salvage Created 1535 | . 111 706 106 . 612 Parts 95 | . 4 46 5 . 40 Haulers Intercepted . | . . . . . . Recyclers Shooed 1 | . . 1 . . . Parts Field Recycled . | . . . . . . Retrieved Matter . | . . . . . . Parts Self-Destructed . | . . . . . . Prevented . | . . . . . . Kills | -11 -10 -9 -8 -7 -6 ------- Run | Yrd Mat Mat Mat Fac Fac Combat Hostiles Destroyed 32 | . 5 13 2 . 12 Guns 25 | . 5 13 2 . 5 Cannons 6 | . . . . . 6 AOE 1 | . . . . . 1 Classes Destroyed 8 | . 2 3 . . 3 Worker 1 | . . . . . 1 Builder 2 | . . . . . 2 Recycler 2 | . . 2 . . . Watcher 4 | . . 1 . . 3 Swarmer 8 | . 3 5 . . . Grunt 6 | . 2 . 1 . 3 Sentry 13 | . . 8 1 . 4 Programmer 5 | . . . . . 5 Best Kill Streak 8 | . 4 8 1 . 4 Combat Bots Only 6 | . 4 6 1 . 4 Max Kills in Single Turn 2 | . 1 1 1 . 2 Gunslinging . | . . . . . . Exploded 1 | . . . . . 1 Melee . | . . . . . . Uniques/NPCs Destroyed . | . . . . . . Combat | -11 -10 -9 -8 -7 -6 -------- Run | Yrd Mat Mat Mat Fac Fac Hostile Shots Fired 709 | . 26 166 33 . 484 Missed 226 | . 3 40 9 . 174 Damage Taken 6732 | . 241 1716 352 . 4423 Core 1170 | . 42 227 42 . 859 Absorbed by Shields . | . . . . . . Core Remaining (%) 83 | 100 83 43 92 100 . Volleys Fired 142 | . 18 58 10 . 56 Largest 3 | . 2 2 2 . 3 Hottest 135 | . 90 90 81 . 135 Shots Fired 252 | . 30 104 20 . 98 Gun 217 | . 30 104 20 . 63 Cannon 35 | . . . . . 35 Launcher . | . . . . . . Special . | . . . . . . Kinetic 134 | . 11 72 10 . 41 Thermal 79 | . 19 32 10 . 18 Explosive . | . . . . . . Electromagnetic 39 | . . . . . 39 Robot Hit Streak 12 | . 9 7 7 . 12 Robot Miss Streak 6 | . 3 4 3 . 6 Penetration Max 1 | . . . . . 1 Secondary Targets 5 | . . 5 . . . Max Gunslinging Chain 1 | . . 1 . . . Shots Hit Robots 163 | . 18 63 12 . 70 Core Hits 73 | . 8 25 5 . 35 Critical Kills . | . . . . . . Critical Parts Destroyed 4 | . 1 . . . 3 Critical Strikes 13 | . 1 2 . . 10 Burn 5 | . . 2 . . 3 Destroy 2 | . 1 . . . 1 Blast 4 | . . . . . 4 Smash 2 | . . . . . 2 Melee Attacks 11 | . . . . . 11 Impact 11 | . . . . . 11 Slashing . | . . . . . . Piercing . | . . . . . . Sneak Attacks . | . . . . . . Combat Hostiles . | . . . . . . Follow-up Attacks . | . . . . . . Damage Inflicted 3688 | . 183 959 185 . 2361 Guns 2343 | . 183 959 185 . 1016 Cannons 1035 | . . . . . 1035 Explosions 74 | . . . . . 74 Melee 236 | . . . . . 236 Ramming . | . . . . . . Kinetic 1907 | . 52 656 97 . 1102 Thermal 857 | . 131 303 88 . 335 Explosive . | . . . . . . Electromagnetic 688 | . . . . . 688 Impact 236 | . . . . . 236 Slashing . | . . . . . . Piercing . | . . . . . . Highest Corruption 11 | . . . . . 11 Average Corruption 1 | . . . . . 1 Corruption Purged . | . . . . . . Corruption Blocked . | . . . . . . Effects 7 | . . . . . 7 Message Errors 3 | . . . . . 3 Matter Fused 1 | . . . . . 1 Heat Flow Errors 1 | . . . . . 1 Energy Discharges 1 | . . . . . 1 Data Loss (minor) 1 | . . . . . 1 Overload Shots . | . . . . . . Overflow Damage 156 | . . . . . 156 Projectiles 39 | . . . . . 39 Explosions 39 | . . . . . 39 Melee 78 | . . . . . 78 Knockbacks 8 | . . . . . 8 Impact 1 | . . . . . 1 Kinetic 7 | . . . . . 7 Secondary . | . . . . . . Self-Inflicted Damage 51 | . . . . . 51 Shots 1 | . . . . . 1 Rammed . | . . . . . . Targets Rammed . | . . . . . . Kicked . | . . . . . . Crushed . | . . . . . . Highest Temperature 269 | . 266 269 78 . 267 Average Temperature 74 | . 163 69 32 . 36 Received Heat Transfer 1424 | . 138 477 162 . 647 Effects 4 | . 3 1 . . . Interference 4 | . 3 1 . . . Siege Activations . | . . . . . . Robots Corrupted 1 | . . . . . 1 Combat Hostiles . | . . . . . . Parts Fried 7 | . . . . . 7 Impact Corruptions 3 | . . . . . 3 Robots Melted . | . . . . . . Combat Hostiles . | . . . . . . Parts Melted 5 | . 2 1 . . 2 Heat Transferred 2231 | . 383 926 222 . 700 Parts Sabotaged . | . . . . . . Parts Stolen . | . . . . . . Parts Stripped . | . . . . . . Power Chain Reactions 1 | . . . . . 1 Alert | -11 -10 -9 -8 -7 -6 ------- Run | Yrd Mat Mat Mat Fac Fac Peak Influence 349 | . 125 349 84 29 232 Initial 68 | . . 52 68 29 . Average 98 | . 52 167 58 20 102 Maximum Alert Level 1 | . . 1 . . 1 Low Security (%) 90 | 100 100 73 100 100 92 Level 1 9 | . . 26 . . 7 Level 2 . | . . . . . . Level 3 . | . . . . . . Level 4 . | . . . . . . Level 5 . | . . . . . . High Security . | . . . . . . Max Security . | . . . . . . Squads Dispatched 7 | . 1 . 2 . 4 Investigation 1 | . . . 1 . . Extermination 2 | . . . . . 2 Reinforcement 3 | . 1 . 1 . 1 Assault . | . . . . . . Garrison 1 | . . . . . 1 Intercept . | . . . . . . Searches Triggered . | . . . . . . Construction Impeded . | . . . . . . Haulers Reinforced . | . . . . . . Active Scanning Responses . | . . . . . . Cargo Convoy Interrupts 1 | . . . . . 1 Stealth | -11 -10 -9 -8 -7 -6 --------- Run | Yrd Mat Mat Mat Fac Fac Distress Signals 6 | . . 1 . . 5 Communications Jammed . | . . . . . . Distress Signals . | . . . . . . Times Spotted 85 | . 8 20 7 2 48 Peak Tracking Total 12 | . 6 7 2 2 12 Tactical Retreats 7 | . . 1 . . 6 Traps | -11 -10 -9 -8 -7 -6 ------- Run | Yrd Mat Mat Mat Fac Fac Traps Triggered 3 | . . . 1 . 2 Indirectly . | . . . . . . Trap Hack Attempts . | . . . . . . Triggered . | . . . . . . Disarmed . | . . . . . . Reprogrammed . | . . . . . . Reused . | . . . . . . Traps Extracted . | . . . . . . Installed . | . . . . . . Triggered . | . . . . . . Machines | -11 -10 -9 -8 -7 -6 ---------- Run | Yrd Mat Mat Mat Fac Fac Machines Disabled 2 | . . 1 . . 1 Max in Single Turn 1 | . . 1 . . 1 Machines Repaired . | . . . . . . Machines Dismantled . | . . . . . . Machines Sabotaged . | . . . . . . Overloaded Fab Kills . | . . . . . . Hacking | -11 -10 -9 -8 -7 -6 --------- Run | Yrd Mat Mat Mat Fac Fac Machines Accessed 8 | . . 3 2 . 3 Terminals 5 | . . 2 2 . 1 Fabricators 1 | . . . . . 1 Repair Stations . | . . . . . . Recycling Units 2 | . . 1 . . 1 Scanalyzers . | . . . . . . Garrison Access . | . . . . . . Total Hacks 9 | . . 3 3 . 3 Successful 4 | . . 1 1 . 2 Failed 5 | . . 2 2 . 1 Catastrophic 1 | . . . . . 1 Database Lockouts . | . . . . . . Manual . | . . . . . . Terminals 6 | . . 2 3 . 1 Fabricators 1 | . . . . . 1 Repair Stations . | . . . . . . Recycling Units 2 | . . 1 . . 1 Scanalyzers . | . . . . . . Garrison Access . | . . . . . . Terminal Hacks 3 | . . 1 1 . 1 Emergency Access Points 1 | . . . . . 1 Alert Level 2 | . . 1 1 . . Fabricator Hacks . | . . . . . . Repair Station Hacks . | . . . . . . Recycling Unit Hacks 1 | . . . . . 1 Report Inventory 1 | . . . . . 1 Scanalyzer . | . . . . . . Garrison Access Hacks . | . . . . . . Unauthorized Hacks . | . . . . . . Terminals . | . . . . . . Fabricators . | . . . . . . Repair Stations . | . . . . . . Recycling Units . | . . . . . . Scanalyzers . | . . . . . . Garrison Access . | . . . . . . Data Cores Recovered . | . . . . . . Used . | . . . . . . Hacking Detections 5 | . . 1 1 . 3 Full Trace Events . | . . . . . . Feedback Events . | . . . . . . Feedback Blocked . | . . . . . . Robot Schematics Acquired . | . . . . . . Robots Built . | . . . . . . Authchips . | . . . . . . Time . | . . . . . . Total Robot Build Rating . | . . . . . . Part Schematics Acquired . | . . . . . . Parts Built . | . . . . . . Authchips . | . . . . . . Time . | . . . . . . Total Part Build Rating . | . . . . . . Parts Repaired . | . . . . . . Time . | . . . . . . Parts Recycled . | . . . . . . Recycled Matter . | . . . . . . Retrieved Matter . | . . . . . . Retrieved Components . | . . . . . . Parts Scanalyzed . | . . . . . . Part Schematics Acquired . | . . . . . . Parts Damaged . | . . . . . . Bothacking | -11 -10 -9 -8 -7 -6 ------------ Run | Yrd Mat Mat Mat Fac Fac Used RIF Installer . | . . . . . . Robots Hacked . | . . . . . . Non-combat . | . . . . . . Combat . | . . . . . . Robot Hacks Applied . | . . . . . . Relay Couplers Released . | . . . . . . Fabnet Peak Effective % . | . . . . . . Robots Rewired . | . . . . . . Allies Hacked . | . . . . . . Hacks Repelled . | . . . . . . Allies | -11 -10 -9 -8 -7 -6 -------- Run | Yrd Mat Mat Mat Fac Fac Total Allies . | . . . . . . Largest Group . | . . . . . . Highest-Rated Group . | . . . . . . Highest-Rated Ally . | . . . . . . Total Orders . | . . . . . . Ally Attacks . | . . . . . . Total Damage . | . . . . . . Kills . | . . . . . . Allies Corrupted . | . . . . . . Allies Melted . | . . . . . . Intel | -11 -10 -9 -8 -7 -6 ------- Run | Yrd Mat Mat Mat Fac Fac Robot Analysis Total . | . . . . . . Derelict Logs Recovered . | . . . . . . Drone Launches . | . . . . . . Drone Recoveries . | . . . . . . Exploration | -11 -10 -9 -8 -7 -6 ------------- Run | Yrd Mat Mat Mat Fac Fac Turns Passed 3951 | 59 123 1041 552 555 1621 Spaces Moved 1918 | 48 80 487 210 227 866 Core 22 | 17 . 5 . . . Treads 1063 | . . 430 210 227 196 Legs 255 | . . . . . 255 Wheels 555 | 31 80 52 . . 392 Hover 6 | . . . . . 6 Flight 17 | . . . . . 17 Fastest Speed 34 | 50 90 100 240 240 34 Average Speed 172 | 89 91 169 240 240 153 Slowest Speed 250 | 100 100 250 240 240 240 Overloaded Moves . | . . . . . . Propulsion Burnouts . | . . . . . . Robots Hopped 1 | . . . . . 1 Cave-ins Triggered . | . . . . . . Exploration Rate (%) 21 | 3 27 47 21 7 21 Regions Visited 5 Branch Regions . Pre-discovered Areas . | . . . . . . Known Exits Taken . | . . . . . . Unknown Exits Taken 5 | 1 1 1 1 1 . Scrap Searched . | . . . . . . Spaces Dug 3 | . . . . . 3 Terrain Destroyed 18 | . . . . . 18 Melee 3 | . . . . . 3 Projectile 7 | . . . . . 7 AOE 8 | . . . . . 8 Terrain Rammed . | . . . . . . Walls Destroyed . | . . . . . . Machines Disabled . | . . . . . . Actions | -11 -10 -9 -8 -7 -6 --------- Run | Yrd Mat Mat Mat Fac Fac Total 2289 | 61 100 608 240 239 1041 Wait 30 | . . 15 . . 15 Move 1911 | 47 79 486 209 226 864 Hop 1 | . . . . . 1 Pick Up 71 | 8 1 14 14 8 26 Fast Attach 23 | 4 . 6 . . 13 Attach 33 | 2 . 6 3 2 20 Detach . | . . . . . . Swap 30 | . 2 11 3 1 13 Drop 37 | . . 12 1 2 22 Fire 142 | . 18 58 10 . 56 Melee 11 | . . . . . 11 Ram . | . . . . . . Kick . | . . . . . . Crush . | . . . . . . Escape Stasis . | . . . . . . Rewire . | . . . . . . Trap . | . . . . . . Miscellaneous . | . . . . . . Route ------- -11/Scrapyard -10/Materials (discovered 2 exits: *Mat / [*Min]) -9/Materials -8/Materials -7/Factory -6/Factory History --------- Turn | Location | Event 2 | -11/Scrapyard | Discovered new exit (range 16) 60 | -11/Scrapyard | Entered Materials 102 | -10/Materials | Discovered new exit (range 8) 173 | -10/Materials | Discovered new exit (range 10) 183 | -10/Materials | Entered another Materials area 183 | -9/Materials | Evolved 2 slots: Propulsion x2 316 | -9/Materials | Build established: Mutant 683 | -9/Materials | Lost 3 parts (1p1n1w) 1022 | -9/Materials | Core integrity fell below 50% 1052 | -9/Materials | Discovered new exit (range 13) 1135 | -9/Materials | Build established: Scavenger-Mutant 1224 | -9/Materials | Entered another Materials area 1224 | -8/Materials | Evolved 2 slots: Power x1, Utility x1 1684 | -8/Materials | Discovered new exit (range 10) 1776 | -8/Materials | Entered Factory 1776 | -7/Factory | Evolved 2 slots: Propulsion x2 2319 | -7/Factory | Discovered new exit (range 5) 2331 | -7/Factory | Entered another Factory area 2331 | -6/Factory | Evolved 2 slots: Utility x1, Weapon x1 2862 | -6/Factory | Lost 3 parts (1p1n1u) 3004 | -6/Factory | Lost 7 parts (1p5n1u) 3847 | -6/Factory | Build established: Mutant 3885 | -6/Factory | Cargo convoy interrupted 3903 | -6/Factory | Garrison activated, responded to threat 3914 | -6/Factory | Core integrity fell below 50% 3935 | -6/Factory | Core integrity fell below 20% 3943 | -6/Factory | System corruption reached 10% 3952 | -6/Factory | Destroyed by H-66 Slayer with Gauss Rifle Last Messages --------------- 03942_ Slug penetrates Assembly Bed. 03942_ Gravmag System destroyed. 03942_ Gauss Cannon destroyed. 03942_ U-05 Engineer builds a Wall. 03943_ Assembly Bed collapses. 03943_ Penetrated by Slug. 03943_ Gravmag System destroyed. 03944_ Hyp. Gauss Rifle destroyed. 03944_ Penetrated by Slug. 03944_ Acquired VTOL Module. 03945_ Penetrated by Slug. 03945_ Hvy. Flak Cannon destroyed. 03945_ Slug penetrates Wall. 03945_ M-28 Smith repairs Imp. Heat Sink. 03947_ Penetrated by Slug. 03947_ Slug penetrates P-60 Hacker. 03947_ Acquired 3 matter. 03949_ M-28 Smith repairs P-60 Hacker. 03952_ S2B67G&T